bitfinex/quotes_ETHUSD_20251120
["timestamp","ask_amount","ask_price","bid_price","bid_amount"]
[1763666321016,0.002,2823.7,2823.1,7.55534159]
[1763666321346,0.002,2823.7,2822.5,0.72184624]
[1763666321347,0.002,2823.7,2822.6,7.67404159]
[1763666321510,0.002,2823.7,2822.7,0.83958878]
[1763666322625,0.002,2823.7,2822.6,7.67404159]
[1763666323039,0.002,2823.7,2822.2,0.1187]
[1763666323040,0.463,2823.6,2822.2,0.1187]
[1763666323246,0.98220464,2823.6,2822.3,0.03543209]
[1763666323474,0.98220464,2823.6,2822.2,0.3637]
[1763666323475,0.463,2823.6,2822.2,0.3637]
[1763666323774,0.463,2823.6,2822.3,0.79190416]
[1763666323974,0.98220464,2823.6,2822.3,0.79190416]
[1763666324193,0.463,2823.6,2822.3,0.79190416]
[1763666324336,0.98220464,2823.5,2822.1,7.55534159]
[1763666324680,0.463,2823.4,2822.1,7.55534159]
[1763666324972,0.51920464,2823.3,2822.1,7.55534159]
[1763666325376,0.463,2823.2,2822.1,7.55534159]
[1763666325548,0.98220464,2823.2,2822.2,0.75553416]
[1763666326148,0.463,2823.1,2822.2,0.75553416]
[1763666326367,0.98220464,2823.1,2821.6,8.21651531]
[1763666326973,0.463,2823.0,2821.6,0.66117372]
[1763666327279,0.51920464,2822.9,2821.1,8.0267246]
[1763666327770,0.1803,2823.4,2821.2,0.245]
[1763666327771,0.463,2822.8,2821.2,0.245]
[1763666327973,0.463,2822.8,2821.1,8.0267246]
[1763666328175,0.48589631,2822.7,2821.1,8.0267246]
[1763666328474,0.463,2822.8,2821.1,8.0267246]
[1763666328775,0.463,2822.7,2821.2,0.80267246]
[1763666329150,0.48589631,2822.6,2821.2,0.80267246]
[1763666329464,0.463,2822.7,2820.7,0.71592357]
[1763666329640,0.1803,2822.5,2820.6,7.55534159]
[1763666330036,0.463,2822.4,2820.6,7.55534159]
[1763666330450,0.463,2822.4,2821.1,7.55534159]
[1763666331154,0.463,2822.4,2821.1,7.80034159]
[1763666331470,0.463,2822.4,2821.2,0.78003416]
[1763666331843,0.1803,2822.5,2821.2,1.02503416]
[1763666332044,0.6433,2822.8,2821.6,7.55534159]
[1763666332677,0.463,2822.7,2821.6,7.55534159]
[1763666332859,0.463,2822.7,2821.7,0.75553416]
[1763666333176,0.1803,2822.8,2821.7,0.75553416]
[1763666333377,0.463,2823.3,2822.1,7.55534159]
[1763666334320,0.463,2823.3,2821.7,0.75553416]
[1763666334495,0.92290268,2823.3,2821.7,0.75553416]
[1763666334778,0.92290268,2823.3,2821.8,0.84298758]
[1763666334978,0.463,2823.2,2821.8,0.84298758]
[1763666335866,0.92290268,2823.2,2821.8,0.84298758]
[1763666336268,0.463,2823.1,2821.8,0.84298758]
[1763666336477,0.92223662,2823.1,2821.8,0.84298758]
[1763666336679,0.463,2823.1,2821.8,0.84298758]
[1763666336880,0.463,2823.0,2821.8,0.84298758]
[1763666337759,0.463,2823.0,2821.8,1.08818758]
[1763666338506,0.1823,2823.4,2821.8,1.08818758]
[1763666338710,1.10453662,2823.4,2821.8,1.08818758]
[1763666338871,0.6453,2823.4,2821.8,1.08818758]
[1763666339073,0.002,2823.4,2823.0,7.55534159]
[1763666339268,0.002,2823.4,2823.1,0.75553416]
[1763666339494,0.002,2823.4,2823.2,0.2452]
[1763666340299,0.002,2823.4,2823.1,0.75553416]
[1763666340482,0.002,2823.4,2822.6,7.55534159]
[1763666340702,0.002,2823.4,2823.2,7.55534159]
[1763666341011,0.1852,2824.7,2823.2,7.55534159]
[1763666341312,0.463,2825.1,2823.3,0.2452]
[1763666341510,0.463,2824.9,2823.2,7.55534159]
[1763666341672,0.463,2824.9,2823.3,0.75553416]
[1763666341874,0.92431049,2824.9,2823.1,7.55534159]
[1763666342377,0.463,2824.8,2823.1,7.55534159]
[1763666342721,0.463,2824.8,2823.1,7.80054159]
[1763666343228,0.463,2824.8,2823.1,7.55534159]
[1763666343375,1.3838708,2824.8,2823.1,7.55534159]
[1763666343576,1.3838708,2824.8,2823.2,0.75553416]
[1763666343796,0.463,2824.7,2823.2,0.75553416]
[1763666344184,0.46131049,2824.6,2822.9,7.55534159]
[1763666344524,0.463,2824.5,2822.9,7.55534159]
[1763666344723,0.463,2824.5,2822.3,2.5488617]
[1763666344724,0.463,2824.5,2822.4,7.55534159]
[1763666344881,0.463,2824.5,2822.9,7.55534159]
[1763666345276,0.463,2824.5,2823.4,7.55534159]
[1763666345481,0.463,2824.5,2823.5,0.75553416]
[1763666345887,0.1848,2825.0,2823.5,0.75553416]
[1763666345888,0.6478,2825.0,2823.8,7.55534159]
[1763666346432,0.1848,2825.0,2823.8,7.46536159]
[1763666346626,0.463,2824.9,2823.8,7.41474159]
[1763666347491,0.1848,2825.0,2824.3,7.55534159]
[1763666347684,0.18507576,2825.4,2824.3,7.55534159]
[1763666347921,0.1803,2825.5,2824.4,0.1262]
[1763666348122,7.55534159,2827.8,2824.4,0.1262]
[1763666348123,0.1803,2826.8,2825.3,7.55534159]
[1763666348549,0.4799,2826.7,2824.8,7.55534159]
[1763666348729,1.39231135,2826.7,2824.8,7.55534159]
[1763666348920,1.39231135,2826.7,2824.4,0.1262]
[1763666349094,1.24079689,2826.6,2823.9,0.69888872]
[1763666349424,0.8098206,2826.5,2823.9,0.82542303]
[1763666349630,1.2897206,2826.5,2824.3,7.55534159]
[1763666349815,1.2897206,2826.4,2824.3,7.55534159]
[1763666349995,0.91164382,2826.4,2824.3,7.55534159]
[1763666350327,0.96056753,2826.3,2824.3,7.55534159]
[1763666350521,0.96056753,2826.3,2824.4,0.75553416]
[1763666350723,0.4799,2826.2,2824.4,0.75553416]
[1763666350894,0.48066753,2826.1,2824.4,0.75553416]
[1763666351292,0.4799,2826.0,2824.4,0.75553416]
[1763666352026,0.189,2825.9,2824.8,7.55534159]
[1763666352335,0.4799,2826.4,2824.8,8.31087575]
[1763666352516,0.4799,2826.4,2825.3,7.55534159]
[1763666353105,0.4799,2826.4,2825.1,0.1262]
[1763666353307,0.4799,2826.4,2824.4,0.1262]
[1763666353507,1.43331135,2826.4,2824.4,0.1262]
[1763666353719,0.4799,2826.4,2824.4,0.89435416]
[1763666353920,0.96056753,2826.3,2824.4,0.89435416]
[1763666354238,0.4799,2826.3,2824.8,7.55534159]
[1763666354447,0.4799,2826.2,2824.8,7.55534159]
[1763666354810,0.4799,2826.2,2824.9,7.55534159]
[1763666355122,0.4799,2826.2,2824.9,8.31087575]
[1763666355322,0.4799,2826.2,2824.4,0.1262]
[1763666355645,0.96056753,2826.2,2824.9,7.55534159]
[1763666355844,0.95341135,2826.1,2824.4,7.68154159]
[1763666356046,1.43331135,2826.1,2824.4,7.68154159]
[1763666356353,0.4799,2826.0,2824.4,7.55534159]
[1763666356519,0.95341135,2825.9,2824.4,7.55534159]
[1763666356723,1.14241135,2825.9,2824.4,7.55534159]
[1763666356930,0.4799,2825.8,2824.4,7.55534159]
[1763666357134,0.4799,2825.8,2824.1,0.1262]
[1763666357339,0.4799,2825.8,2823.5,0.001]
[1763666357340,0.98966135,2825.7,2823.5,0.001]
[1763666357653,0.4799,2825.8,2823.8,7.55534159]
[1763666357953,0.48066753,2825.6,2823.8,7.55534159]
[1763666358161,0.48066753,2825.6,2823.5,0.001]
[1763666358162,0.44370401,2825.5,2823.5,0.001]
[1763666358312,0.48066753,2825.4,2823.8,7.55534159]
[1763666358653,0.4799,2825.5,2823.8,7.55534159]
[1763666358855,0.4799,2825.4,2823.8,7.55534159]
[1763666359056,0.189,2823.9,2823.5,0.001]
[1763666359554,0.189,2824.2,2823.5,0.001]
[1763666360051,0.6689,2824.2,2823.5,0.001]
[1763666360410,0.4799,2824.1,2823.5,0.001]
[1763666361549,0.48328734,2824.0,2823.2,0.001]
[1763666361854,0.4799,2824.1,2822.1,7.55534159]
[1763666362069,0.48066753,2824.6,2824.0,0.121]
[1763666362357,0.189,2825.0,2824.0,0.121]
[1763666362511,0.4799,2824.9,2823.6,7.55534159]
[1763666362710,0.4799,2824.9,2823.1,7.55534159]
[1763666362925,0.4799,2824.9,2823.2,0.75553416]
[1763666365664,0.4799,2824.9,2822.6,7.55534159]
[1763666365865,0.4799,2824.9,2822.2,0.121]
[1763666365866,0.189,2823.3,2822.2,0.121]
[1763666366162,0.189,2823.3,2822.4,7.55534159]
[1763666367424,0.4799,2823.2,2822.1,0.121]
[1763666367631,0.4799,2823.2,2821.9,7.55534159]
[1763666367933,0.4799,2823.2,2821.5,0.95918907]
[1763666368991,0.4799,2823.2,2821.2,7.55534159]
[1763666370154,0.4799,2823.2,2821.5,0.001]
[1763666370770,0.1823,2821.6,2821.5,0.001]
[1763666370984,0.1823,2822.0,2821.5,0.001]
[1763666371195,0.6607,2822.0,2821.5,0.001]
[1763666371593,0.4784,2821.9,2821.5,0.001]
[1763666372583,0.4784,2821.9,2821.0,0.001]
[1763666373101,0.4784,2821.9,2821.1,0.1272]
[1763666373322,0.1823,2822.0,2821.2,0.76835416]
[1763666373525,0.4784,2821.9,2821.0,7.55634159]
[1763666374479,0.4784,2821.9,2821.0,0.001]
[1763666375713,13.853508,2821.7,2820.9,0.001]
[1763666376081,13.853508,2821.5,2820.9,0.001]
[1763666376285,10.4784,2821.6,2820.9,0.001]
[1763666376286,2.4331908,2821.4,2820.9,0.001]
[1763666376481,0.65860441,2822.0,2820.9,0.001]
[1763666376482,0.4784,2821.5,2820.9,0.001]
[1763666376681,0.4784,2821.9,2820.9,0.001]
[1763666377913,0.1823,2820.9,2820.5,0.001]
[1763666378336,0.1823,2820.9,2818.9,7.55634159]
[1763666378337,0.4969,2820.8,2818.9,0.001]
[1763666378497,13.853508,2820.7,2818.9,0.001]
[1763666378691,1.45358142,2820.6,2818.9,0.001]
[1763666378883,0.4969,2820.7,2818.9,0.001]
[1763666379300,0.4969,2820.7,2819.1,0.126]
[1763666379501,0.4969,2820.7,2819.1,7.68134159]
[1763666379700,0.4969,2820.7,2819.1,7.93354159]
[1763666379904,0.4969,2820.7,2819.2,0.2522]
[1763666380088,0.18540619,2820.8,2819.6,7.55534159]
[1763666380292,0.191,2821.2,2820.1,7.55534159]
[1763666380535,0.4969,2821.7,2820.1,7.55534159]
[1763666380699,0.18532133,2821.6,2820.6,7.55534159]
[1763666380906,0.18532133,2821.6,2820.2,0.2522]
[1763666381247,0.18532133,2821.6,2820.3,0.78075416]
[1763666381895,0.68222133,2821.6,2820.3,0.78075416]
[1763666382627,0.4969,2821.5,2820.3,0.78075416]
[1763666382829,0.4969,2821.5,2820.3,7.02885083]
[1763666383403,0.18532133,2821.6,2820.3,7.02885083]
[1763666383733,0.68222133,2821.6,2820.4,0.70288508]
[1763666384101,0.4969,2821.5,2820.4,0.70288508]
[1763666385390,0.18532133,2821.6,2820.8,6.24809667]
[1763666385624,0.18532133,2821.6,2820.4,0.70288508]
[1763666385838,0.68222133,2821.6,2820.4,0.70288508]
[1763666386046,0.18532133,2821.6,2820.8,6.24809667]
[1763666386732,0.1823,2822.0,2820.8,6.50029667]
[1763666386932,0.18527052,2822.2,2821.3,6.24809667]
[1763666387104,0.18527052,2822.2,2821.4,0.1272]
[1763666388724,0.4969,2823.2,2821.8,6.24809667]
[1763666389039,0.4969,2823.2,2821.9,0.62480967]
[1763666389341,0.6792,2823.0,2821.9,0.62480967]
[1763666389501,0.18522549,2822.9,2821.4,0.1272]
[1763666389706,0.68212549,2822.9,2821.4,0.1272]
[1763666389902,0.4969,2822.8,2821.4,0.1272]
[1763666390117,0.18522549,2822.9,2821.8,6.24809667]
[1763666390314,0.191,2824.0,2822.3,6.24809667]
[1763666390535,0.4969,2823.7,2822.3,6.24809667]
[1763666390703,0.18519208,2823.4,2822.3,6.24809667]
[1763666391239,0.002,2822.5,2822.3,6.24809667]
[1763666391705,0.002,2822.5,2822.4,0.2522]
[1763666392209,0.002,2822.5,2822.3,6.24809667]
[1763666392605,0.002,2822.5,2822.3,6.50029667]
[1763666392844,0.002,2822.5,2822.4,0.65002967]
[1763666393045,0.002,2822.8,2822.4,0.90222967]
[1763666393346,0.191,2824.0,2822.5,0.2522]
[1763666393544,0.191,2824.0,2823.2,6.24809667]
[1763666393742,0.191,2824.0,2823.3,0.125]
[1763666393743,0.18515245,2823.8,2823.3,0.125]
[1763666394051,0.18515245,2823.8,2823.2,6.24809667]
[1763666394218,0.4969,2823.7,2822.8,6.24809667]
[1763666395443,0.18515245,2823.8,2822.8,6.24809667]
[1763666395649,0.18515245,2823.8,2823.3,6.24809667]
[1763666396251,0.68205245,2823.8,2822.8,6.24809667]
[1763666396623,0.4969,2823.7,2822.8,6.24809667]
[1763666397440,0.4969,2823.7,2822.3,6.24809667]
[1763666397920,0.4969,2823.7,2822.1,6.24809667]
[1763666398643,0.55603096,2823.4,2822.1,6.24809667]
[1763666399033,0.97320441,2823.3,2822.1,6.24809667]
[1763666399530,0.97320441,2823.2,2821.6,6.24809667]
[1763666399965,0.4969,2823.1,2821.6,6.24809667]
[1763666400269,0.47630441,2823.0,2821.6,6.24809667]
[1763666400484,0.47630441,2823.0,2821.4,6.90232043]
[1763666400763,0.6879,2822.9,2821.4,6.24809667]
[1763666401163,0.97320441,2822.8,2821.0,6.24809667]
[1763666401367,0.97320441,2822.8,2821.5,6.24809667]
[1763666401572,0.4969,2822.7,2821.5,6.24809667]
[1763666401872,0.191,2822.9,2821.5,6.24809667]
[1763666401873,0.55614415,2822.4,2822.1,6.24809667]
[1763666402888,0.55614415,2822.4,2821.5,0.62480967]
[1763666402889,0.4969,2823.7,2822.8,6.24809667]
[1763666403029,0.18515245,2823.8,2822.8,6.24809667]
[1763666403236,0.18515245,2823.8,2823.3,6.24809667]
[1763666403540,0.4989,2824.7,2823.7,0.125]
[1763666403746,0.18512017,2824.6,2824.3,6.24809667]
[1763666403933,0.18512017,2824.6,2823.8,6.24809667]
[1763666404129,0.18512017,2824.6,2824.3,6.24809667]
[1763666404452,0.002,2824.7,2824.3,6.24809667]
[1763666404653,0.002,2824.7,2824.4,0.125]
[1763666405070,0.4969,2826.4,2824.4,0.125]
[1763666405232,6.24809667,2827.7,2825.0,6.24809667]
[1763666405431,0.47630441,2827.1,2825.1,6.24809667]
[1763666405631,0.6879,2826.1,2825.1,6.24809667]
[1763666405846,0.191,2825.2,2824.6,6.24809667]
[1763666406374,0.191,2825.2,2823.7,0.125]
[1763666406375,0.191,2824.7,2823.7,0.125]
[1763666406676,0.191,2823.8,2823.1,0.125]
[1763666406976,0.47630441,2824.6,2823.2,6.24809667]
[1763666406977,0.4969,2824.6,2823.2,6.24809667]
[1763666407349,0.47630441,2824.5,2823.2,6.24809667]
[1763666407542,0.4969,2824.6,2823.2,6.24809667]
[1763666407738,0.4969,2824.5,2823.2,6.24809667]
[1763666408182,0.55581384,2824.3,2823.7,6.24809667]
[1763666408866,0.55581384,2824.3,2824.2,6.24809667]
[1763666409068,0.1854,2824.9,2824.2,6.24809667]
[1763666409246,0.55564461,2824.6,2824.2,6.24809667]
[1763666409646,0.55564461,2824.6,2824.2,6.37309667]
[1763666410079,0.55564461,2824.6,2824.2,6.24809667]
[1763666410280,0.55564461,2824.6,2824.2,6.37309667]
[1763666410583,0.55564461,2824.6,2824.2,6.24809667]
[1763666411169,0.002,2825.2,2824.3,0.125]
[1763666411361,0.002,2825.2,2824.8,6.24809667]
[1763666412284,0.002,2825.2,2824.2,0.62480967]
[1763666412285,0.002,2825.2,2824.4,6.24809667]
[1763666412493,0.4804,2825.2,2824.4,6.24809667]
[1763666412863,0.1854,2824.5,2823.9,6.24809667]
[1763666413386,0.1854,2824.9,2823.9,6.87290634]
[1763666413587,0.4804,2825.2,2824.4,6.24809667]
[1763666414514,0.1854,2826.4,2824.9,6.24809667]
[1763666414660,0.1854,2826.4,2826.0,6.24809667]
[1763666414864,0.6638,2826.4,2825.5,6.24809667]
[1763666415305,0.18497984,2826.7,2825.5,6.87290634]
[1763666415505,0.18497984,2826.7,2825.6,0.125]
[1763666415708,0.1854,2826.8,2825.6,0.125]
[1763666416003,0.1854,2826.8,2825.5,6.87290634]
[1763666416163,13.853508,2826.7,2823.8,2.5488617]
[1763666416368,0.47630441,2826.7,2824.0,6.24809667]
[1763666416685,6.24809667,2826.4,2823.6,6.24809667]
[1763666416887,6.24809667,2826.4,2823.3,0.125]
[1763666416888,14.32981241,2826.3,2823.3,0.125]
[1763666417203,6.24809667,2825.4,2822.8,0.125]
[1763666417401,0.1854,2823.4,2822.6,6.24809667]
[1763666417711,0.1854,2823.4,2822.5,0.125]
[1763666417864,0.6638,2823.4,2822.3,0.001]
[1763666418069,0.4784,2823.3,2822.3,0.001]
[1763666418492,0.1854,2822.4,2822.3,0.001]
[1763666419002,0.4784,2823.3,2822.3,0.001]
[1763666419370,0.95470441,2823.3,2822.3,0.001]
[1763666419700,0.4784,2823.3,2822.3,0.001]
[1763666419908,0.4784,2823.2,2822.3,0.001]
[1763666422278,0.1854,2823.4,2822.3,0.001]
[1763666422486,0.6638,2823.4,2822.3,0.001]
[1763666423902,0.1854,2823.7,2822.6,6.24809667]
[1763666424117,0.4784,2823.6,2822.6,6.24809667]
[1763666424316,0.1854,2824.8,2823.1,6.24809667]
[1763666424317,0.1854,2824.0,2823.1,6.24809667]
[1763666424624,0.1854,2824.0,2823.2,0.62480967]
[1763666424823,0.1854,2824.0,2822.4,0.125]
[1763666424824,0.6638,2824.0,2822.4,0.125]
[1763666424996,0.4784,2823.9,2822.3,0.001]
[1763666425730,0.4784,2823.9,2822.6,6.24809667]
[1763666426327,0.4784,2823.9,2822.3,0.001]
[1763666426505,0.99053774,2823.9,2822.3,0.001]
[1763666427029,0.4784,2823.8,2822.3,0.001]
[1763666427237,0.4784,2823.8,2822.3,0.62590967]
[1763666427829,0.51213774,2823.7,2822.3,0.001]
[1763666427992,0.4784,2823.8,2822.3,0.001]
[1763666428195,0.4784,2823.7,2822.3,0.126]
[1763666428508,0.4784,2823.7,2822.6,6.24809667]
[1763666428696,0.55590098,2823.5,2822.6,6.24809667]
[1763666428890,0.55590098,2823.5,2822.7,0.62480967]
[1763666429531,0.55590098,2823.5,2822.3,0.126]
[1763666429532,0.4784,2823.4,2822.3,6.24909667]
[1763666429734,0.55590098,2823.5,2822.8,6.24809667]
[1763666430046,0.4784,2824.3,2823.3,6.24809667]
[1763666430196,0.1854,2824.8,2823.3,6.24809667]
[1763666430197,0.4784,2824.7,2823.3,6.24809667]
[1763666430395,0.55577427,2823.8,2823.5,6.24809667]
[1763666430619,0.4784,2824.7,2823.5,6.87290634]
[1763666431003,0.555741,2824.0,2823.5,6.87290634]
[1763666431214,0.4784,2824.7,2823.5,6.87290634]
[1763666431529,0.55574245,2823.9,2823.1,6.24809667]
[1763666431735,0.4784,2824.7,2823.1,6.24809667]
[1763666431918,0.55576947,2823.8,2823.1,6.24809667]
[1763666432339,0.4507,2824.6,2823.1,6.24809667]
[1763666432540,0.5557821,2823.8,2823.1,6.24809667]
[1763666432839,0.4507,2824.6,2823.2,0.62480967]
[1763666433052,0.55576814,2824.0,2823.2,0.62480967]
[1763666433233,0.55576814,2824.0,2823.6,6.24809667]
[1763666433551,0.4507,2824.6,2823.6,6.24809667]
[1763666434652,0.1854,2824.8,2823.6,6.24809667]
[1763666434828,0.4507,2824.7,2823.6,6.24809667]
[1763666435142,0.4507,2824.7,2823.1,6.24809667]
[1763666435359,0.4507,2824.7,2822.4,6.24809667]
[1763666435523,0.4507,2824.7,2822.9,6.24809667]
[1763666436138,0.4507,2824.7,2823.4,6.24809667]
[1763666436743,0.4507,2824.7,2822.9,6.24809667]
[1763666437861,0.4507,2824.7,2823.4,6.24809667]
[1763666439253,0.4507,2824.7,2823.5,0.125]
[1763666439254,0.55571117,2824.4,2823.5,0.125]
[1763666439453,0.4955,2825.2,2823.9,6.24809667]
[1763666439683,0.1866,2824.9,2823.9,6.24809667]
[1763666439887,0.55565585,2824.2,2823.9,6.24809667]
[1763666440203,0.1866,2824.9,2823.9,6.24809667]
[1763666440204,0.4935,2824.8,2823.9,6.24809667]
[1763666440378,0.5556733,2824.2,2823.4,6.24809667]
[1763666440693,0.5556733,2824.2,2822.6,12.7188617]
[1763666440694,0.4935,2824.8,2822.9,6.24809667]
[1763666440851,0.55575189,2824.1,2823.0,0.62480967]
[1763666441047,0.4935,2824.4,2823.0,0.62480967]
[1763666441247,0.4935,2824.4,2823.0,0.3563]
[1763666441463,0.4935,2824.4,2822.9,6.24809667]
[1763666441464,0.55576914,2824.1,2822.9,6.24809667]
[1763666441745,0.55576914,2824.1,2823.4,6.24809667]
[1763666441948,0.6801,2824.9,2823.9,6.24809667]
[1763666442381,0.002,2825.2,2823.9,6.37309667]
[1763666442578,0.4955,2825.2,2824.0,0.63730967]
[1763666443075,0.4955,2825.2,2823.6,6.24809667]
[1763666443272,0.4955,2825.2,2823.3,6.37309667]
[1763666443748,0.4955,2825.2,2823.4,0.125]
[1763666444076,0.4955,2825.2,2823.3,6.24809667]
[1763666444260,0.4955,2825.2,2823.4,0.125]
[1763666444455,0.4955,2825.2,2823.5,0.63730967]
[1763666444866,0.55566418,2824.8,2823.5,8.19147707]
[1763666445176,0.55566418,2824.8,2823.6,0.125]
[1763666445378,0.55566418,2824.8,2824.0,7.5541674]
[1763666445889,0.4935,2824.7,2823.5,8.19147707]
[1763666446046,0.4935,2824.7,2823.5,7.5541674]
[1763666446374,0.55566418,2824.8,2823.6,0.125]
[1763666446575,0.55566418,2824.8,2824.0,7.5541674]
[1763666446748,0.55566418,2824.8,2824.1,0.75541674]
[1763666447204,0.55566418,2824.8,2824.1,4.57541674]
[1763666447411,0.002,2825.2,2824.5,7.5541674]
[1763666448115,0.002,2825.2,2825.1,0.125]
[1763666448452,0.002,2825.2,2824.5,7.5541674]
[1763666448453,0.002,2825.2,2824.8,0.125]
[1763666450803,0.002,2825.2,2824.8,0.25]
[1763666450982,0.002,2825.2,2825.0,7.5541674]
[1763666451174,0.002,2825.2,2825.1,0.75541674]
[1763666451413,0.002,2825.2,2825.1,0.88041674]
[1763666452700,0.002,2825.2,2825.0,7.5541674]
[1763666452878,0.002,2825.2,2825.1,0.125]
[1763666453079,0.002,2825.2,2825.0,7.5541674]
[1763666453280,0.002,2825.2,2824.8,0.125]
[1763666453908,0.002,2825.2,2825.0,7.5541674]
[1763666454110,0.002,2825.2,2825.1,0.76791674]
[1763666454327,0.002,2825.2,2825.1,0.92831371]
[1763666454481,0.002,2825.2,2825.1,0.89291674]
[1763666454681,0.55535324,2826.2,2825.1,0.89291674]
[1763666454902,0.55535324,2826.2,2825.7,7.5541674]
[1763666455215,0.55535324,2826.2,2825.8,0.75541674]
[1763666455605,0.55535324,2826.2,2825.7,7.5541674]
[1763666455814,0.4935,2826.1,2825.2,7.5541674]
[1763666456127,0.55535324,2826.2,2825.2,7.5541674]
[1763666456630,0.1866,2827.5,2825.3,4.0988617]
[1763666456795,0.55520207,2827.1,2826.1,7.5541674]
[1763666457226,0.1866,2827.5,2826.2,0.125]
[1763666457428,0.55511927,2827.1,2826.2,0.125]
[1763666458960,0.55511927,2827.1,2825.9,7.5541674]
[1763666459447,0.55511927,2827.1,2826.0,0.125]
[1763666459647,0.55511927,2827.1,2826.1,0.76791674]
[1763666459822,0.55511927,2827.1,2826.4,7.5541674]
[1763666460540,1.04861927,2827.1,2825.9,7.5541674]
[1763666460714,1.04861927,2827.1,2825.9,7.6791674]
[1763666460911,1.04861927,2827.1,2825.4,0.40988617]
[1763666460912,0.4935,2827.0,2825.4,0.40988617]
[1763666461123,0.4935,2827.0,2824.8,2.6738617]
[1763666461124,0.4935,2827.0,2825.5,7.5541674]
[1763666461324,0.1866,2826.9,2825.6,7.5541674]
[1763666461549,0.4935,2826.8,2825.6,7.5541674]
[1763666461918,0.4935,2826.8,2825.1,7.6791674]
[1763666462219,0.4935,2826.8,2825.1,7.5541674]
[1763666462451,0.4935,2826.8,2825.2,0.75541674]
[1763666463546,2.5505,2826.8,2825.6,7.5541674]
[1763666464013,0.4935,2826.7,2825.6,7.5541674]
[1763666464213,2.057,2826.8,2826.6,7.5541674]
[1763666465042,2.059,2826.8,2826.6,7.5541674]
[1763666465263,0.4935,2827.9,2826.7,0.88041674]
[1763666465419,0.4935,2827.9,2827.1,7.5541674]
[1763666465818,0.4935,2827.9,2827.1,7.4993374]
[1763666466239,0.1866,2828.1,2827.6,7.5541674]
[1763666466749,0.6801,2828.1,2827.6,7.5541674]
[1763666467047,0.6801,2828.1,2827.1,7.5541674]
[1763666467349,0.1866,2828.7,2827.6,7.5541674]
[1763666467555,0.1866,2828.7,2827.2,0.88041674]
[1763666467556,0.1866,2829.0,2828.2,7.5541674]
[1763666467853,0.1866,2829.4,2828.7,7.5541674]
[1763666468213,0.1866,2828.8,2827.5,0.125]
[1763666468657,0.4673,2828.7,2827.5,0.125]
[1763666468956,0.4673,2828.7,2827.7,7.5541674]
[1763666469159,0.4673,2828.7,2827.2,0.125]
[1763666469520,0.4673,2828.7,2827.0,7.5541674]
[1763666469775,0.4673,2828.7,2826.9,0.82236857]
[1763666469939,0.4673,2828.7,2826.9,0.9626536]
[1763666470552,0.4673,2828.7,2826.7,7.5541674]
[1763666471128,0.42640655,2828.6,2826.7,7.5541674]
[1763666471314,0.42640655,2828.6,2825.2,3.30427844]
[1763666471315,0.42640655,2828.6,2826.2,0.125]
[1763666471516,0.1879,2826.8,2826.0,7.5541674]
[1763666471729,0.1879,2826.8,2826.1,0.75541674]
[1763666472121,0.6552,2826.8,2826.1,0.75541674]
[1763666472320,0.1879,2826.8,2826.0,7.5541674]
[1763666473154,0.1879,2826.8,2825.9,7.5541674]
[1763666473320,0.6552,2826.8,2825.9,7.5541674]
[1763666473536,0.1879,2826.8,2825.9,7.5541674]
[1763666473885,0.1879,2827.4,2826.4,7.5541674]
[1763666474177,0.1879,2827.4,2826.5,0.75541674]
[1763666474473,0.1866,2829.4,2826.5,0.75541674]
[1763666474474,0.74295792,2830.0,2826.9,7.5541674]
[1763666474639,0.0948,2828.3,2827.0,0.4764]
[1763666474845,0.0948,2828.3,2827.0,0.80305674]
[1763666475244,0.1879,2827.1,2826.4,7.5541674]
[1763666476242,0.0948,2828.3,2826.4,7.5541674]
[1763666476547,0.4673,2828.2,2826.4,7.5541674]
[1763666476741,0.4673,2828.2,2826.5,0.4764]
[1763666476942,0.4673,2828.2,2827.5,7.5541674]
[1763666477439,0.4673,2828.2,2827.1,0.1966]
[1763666477682,0.4673,2828.2,2827.2,0.77507674]
[1763666477971,0.0948,2828.3,2827.5,7.5541674]
[1763666478159,0.1879,2827.6,2826.7,7.5541674]
[1763666479385,0.55495909,2828.0,2827.2,7.5541674]
[1763666479873,0.55495909,2828.0,2827.3,0.1966]
[1763666480059,0.55495909,2828.0,2827.4,0.82271674]
[1763666480845,0.55495909,2828.0,2826.3,0.1966]
[1763666480846,0.4673,2827.9,2826.7,7.5541674]
[1763666481472,0.97203988,2827.9,2826.7,7.5541674]
[1763666481644,0.50473988,2827.8,2826.8,0.4764]
[1763666481840,0.4673,2827.9,2826.8,0.4764]
[1763666482372,0.4673,2830.7,2828.2,7.5541674]
[1763666482570,0.4673,2830.6,2829.4,7.5541674]
[1763666482747,0.4673,2830.6,2828.3,0.4764]
[1763666482748,0.4673,2830.6,2828.8,7.5541674]
[1763666482948,0.4673,2830.6,2828.8,9.29238705]
[1763666483145,13.821908,2830.5,2828.1,1.26181965]
[1763666483447,13.821908,2830.5,2827.6,7.5541674]
[1763666483448,0.1879,2828.9,2827.7,1.26181965]
[1763666483680,0.6552,2828.9,2827.7,1.26181965]
[1763666483895,0.6552,2828.9,2827.5,1.26181965]
[1763666484060,1.29765625,2828.8,2827.1,8.95108705]
[1763666484259,0.4673,2828.8,2827.2,0.4764]
[1763666484468,0.1879,2828.9,2827.6,7.5541674]
[1763666484469,0.4673,2828.7,2827.6,7.5541674]
[1763666485060,0.4673,2828.7,2827.1,1.26181965]
[1763666485253,0.53397118,2828.6,2827.0,1.26181965]
[1763666485450,0.4673,2828.7,2826.9,0.80305674]
[1763666485793,0.1879,2828.9,2826.9,0.80305674]
[1763666485794,0.99993784,2828.6,2826.9,0.80305674]
[1763666486090,0.4673,2828.6,2826.9,0.80305674]
[1763666486257,0.4673,2828.5,2826.9,0.80305674]
[1763666486462,0.4673,2828.5,2826.6,0.001]
[1763666486463,0.99993784,2828.5,2826.6,0.001]
[1763666486651,0.1879,2827.0,2826.6,0.001]
[1763666487104,0.4673,2826.9,2826.6,0.001]
[1763666489367,0.1879,2827.0,2826.6,0.001]